bitfinex/quotes_BTCUSD_20250529
["timestamp","ask_amount","ask_price","bid_price","bid_amount"]
[1748533660371,0.01033201,107150.0,107140.0,1.1421407]
[1748533660796,0.001,107150.0,107140.0,1.17825429]
[1748533661031,0.001,107150.0,107140.0,1.18425429]
[1748533661261,0.001,107150.0,107140.0,1.16684699]
[1748533661491,0.001,107150.0,107140.0,1.20735258]
[1748533661739,0.01866263,107160.0,107140.0,1.20735258]
[1748533661740,0.00933123,107160.0,107150.0,0.04574085]
[1748533661965,0.00933123,107160.0,107150.0,0.34087029]
[1748533662196,0.34,107170.0,107160.0,0.03074085]
[1748533662433,0.5452807,107170.0,107160.0,0.42253575]
[1748533662680,0.5452807,107170.0,107160.0,0.42252001]
[1748533662926,0.5452807,107170.0,107160.0,0.12300001]
[1748533663165,0.34933053,107170.0,107160.0,0.51800001]
[1748533663386,0.36799159,107170.0,107160.0,0.53420001]
[1748533663617,0.56394185,107170.0,107160.0,0.53420001]
[1748533664143,0.54928105,107170.0,107160.0,0.5004748]
[1748533664364,0.54928105,107170.0,107160.0,0.51786838]
[1748533664811,0.55328105,107170.0,107160.0,0.51786587]
[1748533665040,0.36666071,107170.0,107160.0,0.54076611]
[1748533665261,0.01733027,107170.0,107160.0,0.5581567]
[1748533665501,0.01733027,107170.0,107160.0,0.56748854]
[1748533665732,0.03599133,107170.0,107160.0,0.5581567]
[1748533665976,0.03599133,107170.0,107160.0,0.5581967]
[1748533666218,0.03599133,107170.0,107160.0,0.55818543]
[1748533666458,0.03599133,107170.0,107160.0,0.51163327]
[1748533666459,0.80731416,107170.0,107160.0,0.51163327]
[1748533666678,0.21328079,107170.0,107160.0,0.90623327]
[1748533666907,0.21328079,107170.0,107160.0,0.92077137]
[1748533667814,0.21328079,107170.0,107160.0,0.92077062]
[1748533668279,0.21328079,107170.0,107160.0,0.9033948]
[1748533668510,0.03599237,107170.0,107160.0,0.92999364]
[1748533668735,0.02666141,107170.0,107160.0,0.94559288]
[1748533669007,0.02666141,107170.0,107160.0,0.9457127]
[1748533669233,0.03599177,107170.0,107160.0,0.936489]
[1748533669479,0.23194211,107170.0,107160.0,0.936489]
[1748533669691,0.23194211,107170.0,107160.0,0.93648296]
[1748533669914,0.23194211,107170.0,107160.0,0.9191148]
[1748533670125,0.23194211,107170.0,107160.0,0.928158]
[1748533670346,0.23194211,107170.0,107160.0,0.9455261]
[1748533670561,0.23194211,107170.0,107160.0,0.928158]
[1748533670776,0.23194211,107170.0,107160.0,0.94552609]
[1748533671195,0.23194211,107170.0,107160.0,0.94552607]
[1748533671482,0.23194211,107170.0,107160.0,0.928158]
[1748533671923,0.23194211,107170.0,107160.0,0.94552683]
[1748533672139,0.23194211,107170.0,107160.0,0.928158]
[1748533672353,0.22261175,107170.0,107160.0,0.93648204]
[1748533672847,0.22261175,107170.0,107160.0,0.94561744]
[1748533673290,0.22261175,107170.0,107160.0,0.94561951]
[1748533673726,0.22261175,107170.0,107160.0,0.93648412]
[1748533674208,0.22261175,107170.0,107160.0,0.93648352]
[1748533674684,0.22261175,107170.0,107160.0,0.93648549]
[1748533674898,0.008,107170.0,107160.0,0.94489601]
[1748533675118,0.01733036,107170.0,107160.0,1.15823532]
[1748533675341,0.01733027,107170.0,107160.0,1.76160035]
[1748533675569,0.01733027,107170.0,107160.0,1.76159932]
[1748533675796,0.00933027,107170.0,107160.0,1.75226757]
[1748533676026,0.02798932,107180.0,107170.0,0.03064085]
[1748533676277,0.1,107200.0,107190.0,0.01454085]
[1748533676521,0.1,107200.0,107190.0,0.55083587]
[1748533676522,0.11865549,107200.0,107190.0,0.55083587]
[1748533676739,0.11865549,107200.0,107190.0,0.54850142]
[1748533676740,0.13731133,107200.0,107190.0,0.54850142]
[1748533677197,0.13731124,107200.0,107190.0,0.54849511]
[1748533677644,0.13731124,107200.0,107190.0,0.55264239]
[1748533677909,0.10932757,107200.0,107190.0,0.75788513]
[1748533678158,0.1,107200.0,107190.0,0.76721436]
[1748533678384,0.1,107200.0,107190.0,1.36254491]
[1748533678604,0.1,107200.0,107190.0,0.74854907]
[1748533678819,0.1,107200.0,107190.0,0.75787787]
[1748533679088,0.10932766,107200.0,107190.0,0.76187787]
[1748533679328,0.10932766,107200.0,107190.0,0.16259504]
[1748533679329,0.29589482,107200.0,107190.0,0.16259504]
[1748533679561,0.34009847,107200.0,107190.0,0.53416547]
[1748533679785,0.34009847,107200.0,107190.0,0.92856639]
[1748533679786,0.30522344,107200.0,107190.0,0.92856639]
[1748533680211,0.30522344,107200.0,107190.0,0.5341666]
[1748533680439,0.89925681,107200.0,107190.0,0.53416659]
[1748533680670,0.85925681,107200.0,107190.0,0.91370574]
[1748533680889,0.85925681,107200.0,107190.0,0.92824659]
[1748533681115,0.85925681,107200.0,107190.0,0.92824683]
[1748533681336,0.85925681,107200.0,107190.0,0.91090208]
[1748533681799,0.85925681,107200.0,107190.0,0.92825293]
[1748533681800,0.26522344,107200.0,107190.0,0.92825293]
[1748533682023,0.26522344,107200.0,107190.0,0.91090208]
[1748533683113,0.26522344,107200.0,107190.0,0.9282611]
[1748533683321,0.26522344,107200.0,107190.0,0.91090208]
[1748533683531,0.26522344,107200.0,107190.0,0.92826103]
[1748533683745,0.26522344,107200.0,107190.0,0.91090208]
[1748533684490,0.26522344,107200.0,107190.0,0.92827004]
[1748533684702,0.26522344,107200.0,107190.0,0.92827006]
[1748533684913,0.26522344,107200.0,107190.0,0.91090208]
[1748533685577,0.26522344,107200.0,107190.0,0.92799008]
[1748533685755,0.26522344,107200.0,107190.0,0.92800183]
[1748533686016,0.26522344,107200.0,107190.0,0.92800203]
[1748533686237,0.26522344,107200.0,107190.0,0.62940203]
[1748533686469,1.23065681,107200.0,107190.0,0.5342032]
[1748533686711,1.2394675,107200.0,107190.0,0.89596123]
[1748533686925,1.2394675,107200.0,107190.0,0.91050208]
[1748533687351,1.2394675,107200.0,107190.0,0.9279073]
[1748533687352,0.64543413,107200.0,107190.0,0.9279073]
[1748533687566,1.2394675,107200.0,107190.0,0.92790715]
[1748533687781,1.23947518,107200.0,107190.0,0.92790942]
[1748533688218,1.23947518,107200.0,107190.0,0.92790948]
[1748533688630,1.23947518,107200.0,107190.0,0.92791831]
[1748533688842,1.23947518,107200.0,107190.0,0.92775831]
[1748533689053,1.23947518,107200.0,107190.0,0.9277603]
[1748533689291,1.23947518,107200.0,107190.0,0.92776023]
[1748533689511,1.23947518,107200.0,107190.0,0.62940023]
[1748533689731,1.87940654,107200.0,107190.0,0.41122728]
[1748533689956,0.67110674,107200.0,107190.0,0.59744123]
[1748533690179,1.25049814,107200.0,107190.0,0.61198208]
[1748533690390,1.25049814,107200.0,107190.0,0.60798208]
[1748533690628,1.87940654,107200.0,107190.0,0.40722728]
[1748533690858,1.84453151,107200.0,107190.0,0.50038728]
[1748533691066,1.84815052,107200.0,107190.0,0.50038728]
[1748533691282,1.84815052,107200.0,107190.0,0.40822728]
[1748533691526,0.55901486,107190.0,107180.0,0.39348]
[1748533691742,1.16187774,107190.0,107180.0,0.09516]
[1748533692387,1.17291463,107190.0,107180.0,0.09516]
[1748533692835,1.17591463,107190.0,107180.0,0.09616]
[1748533693883,1.17591463,107190.0,107180.0,0.09716]
[1748533694097,1.17891463,107190.0,107180.0,0.09716]
[1748533694933,1.17891463,107190.0,107180.0,0.002]
[1748533695358,0.58488126,107190.0,107180.0,0.002]
[1748533695570,1.17891463,107190.0,107180.0,0.002]
[1748533696823,0.58488126,107190.0,107180.0,0.002]
[1748533697025,1.16787774,107190.0,107180.0,0.002]
[1748533697440,1.17891463,107190.0,107180.0,0.002]
[1748533698706,22.17891463,107190.0,107180.0,0.002]
[1748533700179,22.16787761,107190.0,107180.0,0.002]
[1748533701037,21.57384424,107190.0,107180.0,0.002]
[1748533701289,22.16787761,107190.0,107180.0,0.002]
[1748533701506,22.32097523,107190.0,107180.0,0.002]
[1748533701721,22.2507784,107190.0,107180.0,0.002]
[1748533701959,22.23613643,107190.0,107180.0,0.002]
[1748533702610,22.32719038,107190.0,107180.0,0.002]
[1748533702837,22.32719038,107190.0,107160.0,4e-05]
[1748533702838,0.5452807,107170.0,107160.0,4e-05]
[1748533703048,1.18977438,107170.0,107160.0,4e-05]
[1748533703932,1.18977438,107170.0,107160.0,0.00204]
[1748533704357,1.18976277,107170.0,107160.0,0.00204]
[1748533704782,0.5957294,107170.0,107160.0,0.00404]
[1748533704993,1.18976277,107170.0,107160.0,0.00404]
[1748533705435,0.5957294,107170.0,107160.0,0.00404]
[1748533706723,0.58470234,107170.0,107160.0,0.00404]
[1748533706943,0.55410234,107170.0,107160.0,0.1096348]
[1748533707183,0.5452807,107170.0,107160.0,0.4395348]
[1748533707394,0.55410234,107170.0,107160.0,0.4395348]
[1748533707607,0.5452807,107170.0,107160.0,0.4395348]
[1748533708473,0.55410397,107170.0,107160.0,0.4395348]
[1748533709674,0.55410397,107170.0,107160.0,0.45694368]
[1748533710141,0.55410397,107170.0,107160.0,0.4395348]
[1748533710356,0.55410397,107170.0,107160.0,0.45694624]
[1748533710607,0.55410397,107170.0,107160.0,0.4395348]
[1748533710829,0.55410397,107170.0,107160.0,0.45694623]
[1748533711057,0.55410397,107170.0,107160.0,0.45694863]
[1748533712339,0.55410397,107170.0,107160.0,0.15814863]
[1748533712595,0.55411838,107170.0,107160.0,0.45714863]
[1748533712819,0.55411838,107170.0,107160.0,0.4397348]
[1748533713262,0.55411838,107170.0,107160.0,0.45715292]
[1748533714442,0.55411838,107170.0,107160.0,0.45715491]
[1748533714748,0.55411838,107170.0,107160.0,0.4571551]
[1748533714966,0.55411838,107170.0,107160.0,0.45715675]
[1748533715199,0.55411838,107170.0,107160.0,0.4397348]
[1748533715482,0.55411838,107170.0,107160.0,0.4571563]
[1748533715713,0.55411838,107170.0,107160.0,0.4397348]
[1748533715928,0.55411838,107170.0,107160.0,0.45715565]
[1748533716413,0.55411838,107170.0,107160.0,0.45716779]
[1748533716669,0.5452807,107170.0,107160.0,0.45716779]
[1748533716870,0.55414103,107170.0,107160.0,0.4397348]
[1748533717080,0.55414103,107170.0,107160.0,0.45717204]
[1748533717318,0.55414103,107170.0,107160.0,0.4397348]
[1748533717772,0.55414103,107170.0,107160.0,0.4571779]
[1748533717985,0.55414103,107170.0,107160.0,0.45717783]
[1748533718188,0.55414103,107170.0,107160.0,0.4397348]
[1748533718845,0.55414103,107170.0,107160.0,0.45717782]
[1748533719071,0.55414103,107170.0,107160.0,0.09509395]
[1748533719314,0.63019974,107170.0,107160.0,0.00404]
[1748533719536,0.65250812,107170.0,107160.0,0.00404]
[1748533720018,0.58624103,107170.0,107160.0,0.00404]
[1748533720225,0.88496103,107170.0,107160.0,0.00204]
[1748533720436,0.88496103,107170.0,107160.0,4e-05]
[1748533720661,0.89596103,107170.0,107160.0,4e-05]
[1748533720881,0.59724594,107170.0,107160.0,4e-05]
[1748533721310,0.63012924,107170.0,107160.0,4e-05]
[1748533721537,0.59724594,107170.0,107160.0,4e-05]
[1748533721757,0.63012924,107170.0,107160.0,4e-05]
[1748533722630,0.59724594,107170.0,107160.0,4e-05]
[1748533725766,0.58154594,107170.0,107160.0,4e-05]
[1748533726197,0.59631469,107170.0,107160.0,4e-05]
[1748533726409,0.57991469,107170.0,107160.0,4e-05]
[1748533726663,0.57991469,107170.0,107160.0,0.1056348]
[1748533726881,0.59099196,107170.0,107160.0,0.1056348]
[1748533727114,0.57622321,107170.0,107160.0,0.1056348]
[1748533727330,0.57622321,107170.0,107160.0,0.1211348]
[1748533728415,0.59099057,107170.0,107160.0,0.1211348]
[1748533729109,0.59099312,107170.0,107160.0,0.1211348]
[1748533729326,0.59099312,107170.0,107160.0,0.1056348]
[1748533729544,0.6127966,107170.0,107160.0,4e-05]
[1748533729762,0.6431966,107170.0,107160.0,4e-05]
[1748533730009,0.6103133,107170.0,107160.0,4e-05]
[1748533730460,0.6431966,107170.0,107160.0,4e-05]
[1748533731343,0.97510039,107170.0,107160.0,4e-05]
[1748533731570,0.54531902,107150.0,107140.0,0.09528]
[1748533731785,0.56526426,107150.0,107140.0,0.2008748]
[1748533732211,0.59814756,107150.0,107140.0,0.2008748]
[1748533732429,0.59814756,107150.0,107140.0,0.21834003]
[1748533732663,0.58003945,107150.0,107140.0,0.18633395]
[1748533732898,0.58018654,107150.0,107140.0,0.19233395]
[1748533733113,0.56910515,107150.0,107140.0,0.19233395]
[1748533733328,0.56910451,107150.0,107140.0,0.19233395]
[1748533733566,0.5801817,107150.0,107140.0,0.19233395]
[1748533734037,0.56910451,107150.0,107140.0,0.1116348]
[1748533735384,0.56910451,107150.0,107140.0,0.1086348]
[1748533735602,0.56910451,107150.0,107140.0,0.1056348]
[1748533735818,0.56910451,107150.0,107140.0,0.1096348]
[1748533736256,0.56910451,107150.0,107140.0,0.1403348]
[1748533736257,0.56540181,107150.0,107140.0,0.1403348]
[1748533736965,0.55432932,107150.0,107140.0,0.1403348]
[1748533737406,0.55432435,107150.0,107140.0,0.1403348]
[1748533737650,0.55432435,107150.0,107140.0,0.4385748]
[1748533743006,0.55432435,107150.0,107140.0,0.4380548]
[1748533743644,0.55432435,107150.0,107140.0,0.1403348]
[1748533743847,0.55432435,107150.0,107140.0,0.4400548]
[1748533744291,0.55432611,107150.0,107140.0,0.4400548]
[1748533744930,0.55432611,107150.0,107140.0,0.1403348]
[1748533745405,0.55432611,107150.0,107140.0,0.12579395]
[1748533745618,0.61305961,107150.0,107140.0,0.09509395]
[1748533745832,0.5691013,107150.0,107140.0,0.1096348]
[1748533746050,0.5691013,107150.0,107140.0,0.09509395]
[1748533746480,0.54546611,107150.0,107140.0,0.09509395]
[1748533746933,0.54546611,107150.0,107140.0,0.1096348]
[1748533747367,0.56909851,107150.0,107140.0,0.1096348]
[1748533748485,0.56910587,107150.0,107140.0,0.1096348]
[1748533752543,0.56023636,107150.0,107140.0,0.1096348]
[1748533752754,0.56910029,107150.0,107140.0,0.1096348]
[1748533753215,0.91967334,107150.0,107140.0,0.1096348]
[1748533753423,0.95305713,107150.0,107140.0,0.1096348]
[1748533753837,0.91967334,107150.0,107140.0,0.1096348]
[1748533754273,0.19605994,107110.0,107100.0,0.03074]
[1748533754522,0.54492387,107110.0,107100.0,0.10649395]
[1748533754736,0.55598869,107110.0,107100.0,0.10649395]
[1748533754956,0.55598869,107110.0,107100.0,0.12179395]
[1748533755171,0.55598869,107110.0,107100.0,0.1363348]
[1748533755172,0.54492387,107110.0,107100.0,0.1363348]
[1748533755379,0.54492387,107110.0,107100.0,0.5313348]
[1748533755582,0.54507087,107110.0,107100.0,0.5313348]
[1748533756031,0.54907087,107110.0,107100.0,0.5313348]
[1748533756255,0.54907087,107110.0,107100.0,0.09109395]
[1748533756256,0.62964861,107110.0,107100.0,0.09109395]
[1748533756473,0.55607087,107110.0,107100.0,0.09109395]
[1748533756689,0.55605335,107110.0,107100.0,0.09982599]
[1748533756891,0.55605335,107110.0,107100.0,0.1363348]
[1748533757134,0.55605335,107110.0,107100.0,0.14505588]
[1748533757565,0.55605335,107110.0,107100.0,0.1363348]
[1748533758048,0.56711136,107110.0,107100.0,0.1363348]
[1748533758493,0.55605335,107110.0,107100.0,0.1363348]
[1748533759118,0.56544531,107110.0,107100.0,0.1363348]
[1748533759591,0.57650332,107110.0,107100.0,0.1210348]
[1748533760212,0.57650332,107110.0,107100.0,0.1056348]
[1748533760425,0.56765691,107110.0,107100.0,0.1056348]
[1748533760660,0.58754187,107110.0,107100.0,0.1056348]
[1748533760879,0.57648386,107110.0,107100.0,0.1056348]
[1748533761428,0.60936716,107110.0,107100.0,0.1056348]
[1748533761638,0.57648386,107110.0,107100.0,0.1056348]
[1748533762530,0.57648386,107110.0,107100.0,0.1218348]
[1748533762764,0.57648386,107110.0,107100.0,0.1383348]
[1748533762765,0.56543666,107110.0,107100.0,0.1383348]
[1748533763190,0.56543666,107110.0,107100.0,0.2372948]
[1748533764489,0.5565989,107110.0,107100.0,0.2372948]
[1748533764727,0.56542827,107110.0,107100.0,0.2372948]
[1748533765179,0.20720694,107110.0,107100.0,0.1383348]
[1748533765398,0.20720694,107110.0,107100.0,0.55699028]
[1748533765625,0.55663748,107110.0,107100.0,0.55699028]
[1748533765838,0.55663748,107110.0,107100.0,0.55699135]
[1748533766053,0.55663748,107110.0,107100.0,0.24599141]
[1748533766279,0.55663748,107110.0,107100.0,0.55683141]
[1748533766708,0.54720694,107110.0,107100.0,0.55683141]
[1748533767351,0.54720694,107110.0,107100.0,0.55683275]
[1748533767597,0.54720694,107110.0,107100.0,0.5568327]
[1748533767819,0.54720694,107110.0,107100.0,0.55683269]
[1748533768037,0.54720694,107110.0,107100.0,0.5481348]
[1748533768268,0.02981895,107110.0,107100.0,0.5481348]
[1748533768554,0.03915505,107110.0,107100.0,0.5481348]
[1748533768792,0.22587897,107110.0,107100.0,0.5481348]
[1748533769248,0.21887897,107110.0,107100.0,0.5481348]
[1748533769467,0.20554304,107110.0,107100.0,0.5484148]
[1748533769692,0.20554304,107110.0,107100.0,0.5494148]
[1748533770341,0.20554304,107110.0,107100.0,0.52176272]
[1748533771003,0.19620702,107110.0,107100.0,0.52176272]
[1748533771637,0.19620702,107110.0,107100.0,0.81586272]
[1748533772305,0.19620702,107110.0,107100.0,0.50574272]
[1748533772526,0.19620702,107110.0,107100.0,0.81610272]
[1748533773860,0.19620702,107110.0,107100.0,0.80144187]
[1748533774092,0.53620702,107110.0,107100.0,0.49120187]
[1748533774313,0.53620702,107110.0,107100.0,0.8100713]
[1748533774529,0.54505402,107110.0,107100.0,0.81003143]
[1748533774973,0.54505402,107110.0,107100.0,0.82457228]
[1748533775195,0.54505402,107110.0,107100.0,0.82457809]
[1748533775406,0.54505402,107110.0,107100.0,0.82457806]
[1748533775630,0.54505402,107110.0,107100.0,0.82458265]
[1748533775842,0.54505402,107110.0,107100.0,0.81586272]
[1748533776045,0.54505402,107110.0,107100.0,0.82458265]
[1748533776715,0.53620702,107110.0,107100.0,0.82458357]
[1748533776933,0.54505688,107110.0,107100.0,0.82458357]
[1748533777583,0.54505688,107110.0,107100.0,0.53048756]
[1748533777813,0.54505688,107110.0,107100.0,0.53048754]
[1748533778243,0.19620702,107110.0,107100.0,0.52176272]
[1748533782077,0.19620702,107110.0,107100.0,0.11268272]
[1748533782340,0.19620702,107110.0,107100.0,0.19710187]
[1748533782587,0.19620702,107110.0,107100.0,0.50610187]
[1748533783027,0.19620702,107110.0,107100.0,0.52064272]
[1748533784208,0.79052029,107110.0,107100.0,0.21164272]
[1748533784432,0.79052029,107110.0,107100.0,0.52164272]
[1748533784650,0.79937558,107110.0,107100.0,0.52164272]
[1748533785111,0.79937563,107110.0,107100.0,0.52164272]
[1748533785369,0.61226519,107130.0,107100.0,0.52164272]
[1748533785370,0.01106918,107130.0,107120.0,0.01454085]
[1748533785617,0.01107227,107160.0,107150.0,0.03884085]
[1748533785858,0.02799116,107170.0,107160.0,0.02884085]
[1748533786112,0.21461175,107170.0,107160.0,0.02884085]
[1748533786350,0.21461175,107170.0,107160.0,0.01454085]
[1748533786351,0.56408011,107170.0,107160.0,0.01454085]
[1748533786589,0.00013809,107170.0,107160.0,0.5147948]
[1748533786828,0.00013809,107170.0,107160.0,0.74236344]
[1748533787061,0.00013809,107170.0,107160.0,0.5463948]
[1748533787062,0.02812968,107170.0,107160.0,0.5463948]
[1748533787311,0.02812968,107170.0,107160.0,0.7176316]
[1748533787312,0.00013809,107170.0,107160.0,0.7176316]
[1748533787533,0.00946827,107170.0,107160.0,0.7186316]
[1748533787791,0.00946827,107170.0,107160.0,0.7196316]
[1748533787998,0.00946827,107170.0,107160.0,0.7216316]
[1748533789087,0.00013809,107170.0,107160.0,0.73987394]
[1748533789301,0.00946827,107170.0,107160.0,0.73987394]
[1748533789933,0.00013809,107170.0,107160.0,0.73987394]
[1748533790362,0.00946827,107170.0,107160.0,0.24299714]
[1748533790596,0.03746003,107170.0,107160.0,0.53611714]
[1748533790806,0.01879871,107170.0,107160.0,0.53611714]
[1748533791072,0.00013809,107170.0,107160.0,0.12783714]
[1748533791292,0.22408002,107170.0,107160.0,0.21493629]
[1748533791593,0.22407994,107170.0,107160.0,0.52437629]
[1748533791808,0.22408063,107170.0,107160.0,0.52437629]
[1748533792055,0.22408063,107170.0,107160.0,0.53891714]
[1748533792281,0.20541931,107170.0,107160.0,0.12783714]
[1748533792545,0.20541931,107170.0,107160.0,0.09505395]
[1748533792794,1.48077258,107170.0,107160.0,0.004]
[1748533793679,1.48077258,107170.0,107160.0,0.002]
[1748533793899,0.20531902,107150.0,107140.0,0.30956]
[1748533794114,0.20531902,107150.0,107140.0,0.4151548]
[1748533795167,0.20531902,107150.0,107140.0,0.4181548]
[1748533795350,0.20531902,107150.0,107140.0,0.4178348]
[1748533795592,0.20531902,107150.0,107140.0,0.4177948]
[1748533796755,0.20531902,107150.0,107140.0,0.4207948]
[1748533797761,0.54531902,107150.0,107140.0,0.4207948]
[1748533798540,0.54531902,107150.0,107140.0,0.1115948]
[1748533798796,0.54531902,107150.0,107140.0,0.4201148]
[1748533799306,0.54531902,107150.0,107140.0,0.1115948]
[1748533799567,0.54531902,107150.0,107140.0,0.5216748]
[1748533800394,1.13963229,107150.0,107140.0,0.5216748]
[1748533800658,0.54531902,107150.0,107140.0,0.5216748]
[1748533800920,0.7902813,107160.0,107150.0,0.01454085]
[1748533801174,0.55463127,107160.0,107150.0,0.1055948]
[1748533801706,0.55463127,107160.0,107150.0,0.1216948]
[1748533802017,0.20530004,107160.0,107150.0,0.1216948]
[1748533802241,0.19596855,107160.0,107150.0,0.1236948]
[1748533802585,0.19596855,107160.0,107150.0,0.14422768]
[1748533802586,0.20530004,107160.0,107150.0,0.14422768]
[1748533802787,0.20530039,107160.0,107150.0,0.14422768]
[1748533803020,0.20530039,107160.0,107150.0,0.1418948]
[1748533803405,0.20530039,107160.0,107150.0,0.1257348]
[1748533803813,0.20530039,107160.0,107150.0,0.4345748]
[1748533804377,0.20530039,107160.0,107150.0,0.4504748]
[1748533804803,0.19596864,107160.0,107150.0,0.4504748]
[1748533807058,0.0093314,107160.0,107150.0,0.4504748]
[1748533807288,0.03732552,107160.0,107150.0,0.4507748]
[1748533807505,0.02799377,107160.0,107150.0,0.4507748]
[1748533807739,0.19608826,107170.0,107160.0,0.04714085]
[1748533807740,0.00013809,107170.0,107160.0,0.04714085]
[1748533807951,0.00013809,107170.0,107160.0,0.54368724]
[1748533807952,0.01879872,107170.0,107160.0,0.54368724]
[1748533808173,0.046791,107170.0,107160.0,0.5413548]
[1748533808399,0.01879872,107170.0,107160.0,0.5413548]
[1748533808619,0.02812916,107170.0,107160.0,0.5413548]
[1748533808852,0.00013809,107170.0,107160.0,0.74765501]
[1748533809078,0.00013809,107170.0,107160.0,0.76634847]
[1748533809309,0.00013809,107170.0,107160.0,0.77567987]
[1748533809536,0.00013809,107170.0,107160.0,0.78501057]
[1748533809779,0.00013809,107170.0,107160.0,0.76734803]
[1748533810010,0.00013809,107170.0,107160.0,0.75801663]
[1748533810231,0.00013809,107170.0,107160.0,0.76634803]
[1748533810445,0.00013809,107170.0,107160.0,0.77467934]
[1748533810659,0.00013809,107170.0,107160.0,1.36899261]
[1748533810896,0.00013809,107170.0,107160.0,0.76734803]
[1748533811120,0.00013809,107170.0,107160.0,0.77667926]
[1748533811340,0.00013809,107170.0,107160.0,0.75801663]
[1748533811562,0.00013809,107170.0,107160.0,0.76834803]
[1748533811791,0.00013809,107170.0,107160.0,1.38199253]
[1748533812276,0.00013809,107170.0,107160.0,1.71199253]
[1748533812728,0.00013809,107170.0,107160.0,1.71099253]
[1748533813165,0.00013809,107170.0,107160.0,1.71499253]
[1748533813380,0.00013809,107170.0,107160.0,1.71299253]
[1748533813825,0.00013809,107170.0,107160.0,1.71799253]
[1748533814481,0.00013809,107170.0,107160.0,1.12367926]
[1748533814714,0.00013809,107170.0,107160.0,1.11967926]
[1748533814933,0.00013809,107170.0,107160.0,1.12467926]
[1748533816659,0.00013809,107170.0,107160.0,1.13467926]
[1748533816888,21.01865766,107190.0,107160.0,1.13467926]
[1748533816889,21.01865766,107190.0,107160.0,1.11601611]
[1748533817100,21.02798671,107190.0,107180.0,0.1360948]
[1748533818443,21.02798671,107190.0,107180.0,0.15630021]
[1748533818727,21.01865714,107190.0,107180.0,0.15630021]
[1748533818949,21.01865714,107190.0,107180.0,0.37089124]
[1748533818950,21.0,107190.0,107180.0,0.37089124]
[1748533819180,21.0,107190.0,107180.0,2.29029751]
[1748533819412,21.0,107190.0,107180.0,2.29329751]
[1748533819413,20.98860071,107190.0,107180.0,2.29329751]
[1748533819673,20.91473588,107190.0,107180.0,4.92532861]
[1748533819906,20.85119476,107190.0,107180.0,3.95118861]
[1748533820136,20.82456936,107190.0,107180.0,4.01277873]
[1748533820358,20.7938143,107190.0,107180.0,4.01277873]
[1748533820583,20.7938143,107190.0,107180.0,4.01077873]
[1748533820807,20.78998035,107190.0,107180.0,6.52893635]
[1748533821033,20.76821969,107190.0,107180.0,6.93693635]
[1748533821252,20.76821969,107190.0,107180.0,6.87594273]
[1748533821253,20.72123568,107190.0,107180.0,6.87594273]
[1748533821477,20.51270568,107190.0,107180.0,6.91243635]
[1748533821690,20.49874289,107190.0,107180.0,6.91243635]
[1748533821908,20.41761958,107190.0,107180.0,6.90543635]
[1748533822124,20.36351433,107190.0,107180.0,6.90543635]
[1748533822342,19.75967187,107190.0,107180.0,6.91443635]
[1748533822600,19.67820662,107190.0,107180.0,6.91443635]
[1748533822820,19.63156416,107190.0,107180.0,6.91443635]
[1748533823035,19.57745891,107190.0,107180.0,6.91443635]
[1748533823254,19.56999612,107190.0,107180.0,6.86344273]
[1748533823671,19.56253333,107190.0,107180.0,6.86344273]
[1748533824143,19.55507054,107190.0,107180.0,6.86344273]
[1748533824376,18.14443054,107190.0,107180.0,6.86244273]
[1748533824591,18.13696775,107190.0,107180.0,6.86344273]
[1748533824817,18.13696775,107190.0,107180.0,1.81344273]
[1748533825256,18.13696775,107190.0,107180.0,6.86344273]
[1748533826810,18.09696775,107190.0,107180.0,1.81344273]
[1748533827032,18.09696775,107190.0,107180.0,7.17036273]
[1748533827904,18.09696775,107190.0,107180.0,7.57328273]
[1748533828126,18.09696775,107190.0,107180.0,7.63992461]
[1748533828551,18.09696775,107190.0,107180.0,7.67352273]
[1748533829662,18.09696775,107190.0,107180.0,7.36668273]
[1748533829876,18.09696775,107190.0,107180.0,7.67356273]
[1748533833253,18.09696775,107190.0,107180.0,7.26636273]
[1748533833468,18.09696775,107190.0,107180.0,7.63936461]
[1748533833680,18.09696775,107190.0,107180.0,7.67296273]
[1748533833887,18.05696775,107190.0,107180.0,7.63936461]
[1748533835434,18.05696775,107190.0,107180.0,6.20627461]
[1748533835658,18.05696775,107190.0,107180.0,6.66287461]
[1748533836078,18.05696775,107190.0,107180.0,2.58936461]
[1748533836296,18.05696775,107190.0,107180.0,7.63936461]
[1748533836504,18.05705968,107190.0,107180.0,7.63936461]
[1748533836761,18.05705968,107190.0,107180.0,6.63845134]
[1748533837045,18.05705968,107190.0,107180.0,6.02443061]
[1748533837262,18.05705968,107190.0,107180.0,7.21932461]
[1748533837492,18.05705968,107190.0,107180.0,7.18820861]
[1748533837718,18.05705968,107190.0,107180.0,7.16559761]
[1748533838202,18.05705968,107190.0,107180.0,7.63924461]
[1748533838427,18.05705968,107190.0,107180.0,7.11861261]
[1748533838663,18.05705968,107190.0,107180.0,7.06300961]
[1748533839378,18.05705968,107190.0,107180.0,7.61730361]
[1748533839644,18.05705968,107190.0,107180.0,2.56900534]
[1748533839856,18.05705968,107190.0,107180.0,3.16331861]
[1748533840074,18.05705968,107190.0,107180.0,3.16187516]
[1748533840283,18.05705968,107190.0,107180.0,7.11826016]
[1748533840705,18.05705968,107190.0,107180.0,7.08502516]
[1748533840998,18.05705968,107190.0,107180.0,5.41949616]
[1748533841281,18.01705968,107190.0,107180.0,5.31647416]
[1748533841827,18.01705968,107190.0,107180.0,2.58756116]
[1748533842023,18.01705968,107190.0,107180.0,6.30931816]
[1748533843065,18.01705968,107190.0,107180.0,6.42544316]
[1748533843272,18.01705968,107190.0,107180.0,6.40114316]
[1748533843729,18.01705968,107190.0,107180.0,5.91833616]
[1748533843959,18.01705968,107190.0,107180.0,6.37907617]
[1748533844189,18.01705968,107190.0,107180.0,6.22761117]
[1748533844943,18.01705968,107190.0,107180.0,2.64574517]
[1748533845180,18.01705968,107190.0,107180.0,7.69574517]
[1748533845638,18.01705968,107190.0,107180.0,7.46229517]
[1748533846094,18.01705968,107190.0,107180.0,7.69574517]
[1748533848157,17.97705968,107190.0,107180.0,7.69574517]
[1748533852915,17.97705968,107190.0,107180.0,7.20334017]
[1748533853141,17.97705968,107190.0,107180.0,7.69574517]
[1748533854399,17.97705968,107190.0,107180.0,7.22468117]
[1748533854639,17.99255968,107190.0,107180.0,7.22468117]
[1748533854856,17.99255968,107190.0,107180.0,3.35723817]
[1748533854857,18.00785968,107190.0,107180.0,3.35723817]
[1748533855071,18.00785968,107190.0,107180.0,3.66203817]
[1748533855283,18.00785968,107190.0,107180.0,4.23864117]
[1748533855284,17.96785968,107190.0,107180.0,4.23864117]
[1748533855488,17.96785968,107190.0,107180.0,3.83864117]
[1748533855716,17.96785968,107190.0,107180.0,3.17161334]
[1748533855948,17.96785968,107190.0,107180.0,3.80399717]
[1748533856159,17.96785968,107190.0,107180.0,4.28413917]
[1748533856384,17.96785968,107190.0,107180.0,3.36414017]
[1748533857358,17.96785968,107190.0,107180.0,4.28832917]
[1748533858306,17.96785968,107190.0,107180.0,5.24176917]